Workbook

Sheet Hinweise
A1: Geschäftsgang 6
A3: Voraussetzungen
A4: Um den Geschäftsgang buchen zu können müssen Sie Kenntnisse über die folgenden Lehrninhalte haben:
A5: Buchungen auf Bestandskonten
A6: Buchungen auf Erfolgskonten
A7: Bestandsveränderungen
A8: Umsatzsteuer
A9: Buchung von Bezugskosten
A10: Buchung von Nachlässen und Erlösberichtigungen
A12: Vorgehensweise
A13: 1. Wählen Sie die Tabelle "Grundbuch".
A15: 2. Buchen Sie die Geschäftsvorfälle
A16: entweder durch Direkteingabe in die entsprechenden Felder des Grundbuchs (Kontennummern und Beträge)
A17: oder durch Aufruf von Buchungsfenstern. (Klicken Sie dazu jeweils auf die Schaltfläche "Buchung" und beenden
A18: Sie die Eingabe mit "OK".)
A19: Die Kontennummern sind vierstellig anzugeben. (siehe Kontenplan). Bei zusammengesetzten Buchungssätzen
A20: sind die Buchungen nach der Höhe der Beträge geordnet vorzunehmen.
A22: 3. Sie können sich den Kontenplan mit Kontennummern jederzeit durch Klick auf den
A23: entsprechenden Button anzeigen lassen.
A25: 4. Die Richtigkeit Ihrer Buchungen wird bestätigt oder Sie werden auf
A26: Fehler hingewiesen. (Ohne Buchung werden Fehler angezeigt.)
A28: 5. Hauptbuch, Gewinn und Verlust und Bilanzbuch werden automatisch erstellt.

Sheet Grundbuch
A2: Geschäftsvorfälle
A3: Grundbuch
G4: 0.19
A6: 1. | B6: Zieleinkauf von Baumwollstoffen von der Cotton GmbH & Co KG, | D6: netto | E6: 18500 | F6: =IF(AND(B10="2000",B11="2600",E10="4400"),"Die Konten sind richtig!","Mindestens ein Konto ist falsch!") -> Mindestens ein Konto ist falsch!
A7: Geschäftsvorfall | D7: USt. | E7: =E6*G4 -> 3515 | F7: =IF(AND(D10=E6,D11=E7,G10=E8),"Die Beträge sind richtig!","Mindestens ein Betrag ist falsch!") -> Mindestens ein Betrag ist falsch!
D8: brutto | E8: =SUM(E6:E7) -> 22015 | F8: =IF(AND(F6="Die Konten sind richtig!",F7="Die Beträge sind richtig!"),"Alles richtig!","Es sind noch Fehler vorhanden!") -> Es sind noch Fehler vorhanden!
B9: Soll | C9: Konto | D9: € | E9: Haben | F9: Konto | G9: €
A10: Buchungssatz | C10: =IF(B10="","",VLOOKUP(B10,Kontenplan!$A$4:$B$31,2)) ->  | F10: =IF(E10="","",VLOOKUP(E10,Kontenplan!$A$4:$B$31,2)) -> 
C11: =IF(B11="","",VLOOKUP(B11,Kontenplan!$A$4:$B$31,2)) ->  | F11: =IF(E11="","",VLOOKUP(E11,Kontenplan!$A$4:$B$31,2)) -> 
A13: 2. | B13: Bezugskosten hierauf bar, | D13: netto | E13: 600 | F13: =IF(AND(B17="2001",B18="2600",E17="2880"),"Die Konten sind richtig!","Mindestens ein Konto ist falsch!") -> Mindestens ein Konto ist falsch!
A14: Geschäftsvorfall | D14: USt. | E14: =E13*G4 -> 114 | F14: =IF(AND(D17=E13,D18=E14,G17=E15),"Die Beträge sind richtig!","Mindestens ein Betrag ist falsch!") -> Mindestens ein Betrag ist falsch!
D15: brutto | E15: =SUM(E13:E14) -> 714 | F15: =IF(AND(F13="Die Konten sind richtig!",F14="Die Beträge sind richtig!"),"Alles richtig!","Es sind noch Fehler vorhanden!") -> Es sind noch Fehler vorhanden!
B16: Soll | C16: Konto | D16: € | E16: Haben | F16: Konto | G16: €
A17: Buchungssatz | C17: =IF(B17="","",VLOOKUP(B17,Kontenplan!$A$4:$B$31,2)) ->  | F17: =IF(E17="","",VLOOKUP(E17,Kontenplan!$A$4:$B$31,2)) -> 
C18: =IF(B18="","",VLOOKUP(B18,Kontenplan!$A$4:$B$31,2)) ->  | F18: =IF(E18="","",VLOOKUP(E18,Kontenplan!$A$4:$B$31,2)) -> 
A20: 3. | B20: Die Boutique Simone Sommer begleicht eine Ausgangsrechnung abzüglich 2% Skonto durch Banküberweisung, | D20: Gutschrift | E20: =E23-(E23*2%) -> 17248 | F20: =IF(AND(B25="2800",B26="5001",B27="4800",E25="2400"),"Die Konten sind richtig!","Mindestens ein Konto ist falsch!") -> Mindestens ein Konto ist falsch!
D21: Skonto | E21: =ROUND(((E23*2%)*100)/(100+(100*G4)),2) -> 295.8
A22: Geschäftsvorfall | D22: USt. | E22: =ROUND(E21*G4,2) -> 56.2 | F22: =IF(AND(D25=E20,D26=E21,D27=E22,G25=E23),"Die Beträge sind richtig!","Mindestens ein Betrag ist falsch!") -> Mindestens ein Betrag ist falsch!
D23: Bruttobetrag | E23: 17600 | F23: =IF(AND(F20="Die Konten sind richtig!",F22="Die Beträge sind richtig!"),"Alles richtig!","Es sind noch Fehler vorhanden!") -> Es sind noch Fehler vorhanden!
B24: Soll | C24: Konto | D24: € | E24: Haben | F24: Konto | G24: €
A25: Buchungssatz | C25: =IF(B25="","",VLOOKUP(B25,Kontenplan!$A$4:$B$31,2)) ->  | F25: =IF(E25="","",VLOOKUP(E25,Kontenplan!$A$4:$B$31,2)) -> 
C26: =IF(B26="","",VLOOKUP(B26,Kontenplan!$A$4:$B$31,2)) ->  | F26: =IF(E26="","",VLOOKUP(E26,Kontenplan!$A$4:$B$31,2)) -> 
C27: =IF(B27="","",VLOOKUP(B27,Kontenplan!$A$4:$B$31,2)) ->  | F27: =IF(E27="","",VLOOKUP(E27,Kontenplan!$A$4:$B$31,2)) -> 
A29: 4. | B29: Barzahlung für eine Kfz-Reparatur, | D29: netto | E29: 1100 | F29: =IF(AND(B33="6160",B34="2600",E33="2880"),"Die Konten sind richtig!","Mindestens ein Konto ist falsch!") -> Mindestens ein Konto ist falsch!
A30: Geschäftsvorfall | D30: USt. | E30: =E29*G4 -> 209 | F30: =IF(AND(D33=E29,D34=E30,G33=E31),"Die Beträge sind richtig!","Mindestens ein Betrag ist falsch!") -> Mindestens ein Betrag ist falsch!
D31: brutto | E31: =SUM(E29:E30) -> 1309 | F31: =IF(AND(F29="Die Konten sind richtig!",F30="Die Beträge sind richtig!"),"Alles richtig!","Es sind noch Fehler vorhanden!") -> Es sind noch Fehler vorhanden!
B32: Soll | C32: Konto | D32: € | E32: Haben | F32: Konto | G32: €
A33: Buchungssatz | C33: =IF(B33="","",VLOOKUP(B33,Kontenplan!$A$4:$B$31,2)) ->  | F33: =IF(E33="","",VLOOKUP(E33,Kontenplan!$A$4:$B$31,2)) -> 
C34: =IF(B34="","",VLOOKUP(B34,Kontenplan!$A$4:$B$31,2)) ->  | F34: =IF(E34="","",VLOOKUP(E34,Kontenplan!$A$4:$B$31,2)) -> 
A36: 5. | B36: Rücksendung beschädigter Rohstoffe aus Geschäftsvorfall 1. an die Cotton GmbH & Co KG, | D36: netto | E36: 500 | F36: =IF(AND(B40="4400",E40="2000",E41="2600"),"Die Konten sind richtig!","Mindestens ein Konto ist falsch!") -> Mindestens ein Konto ist falsch!
A37: Geschäftsvorfall | D37: USt. | E37: =E36*G4 -> 95 | F37: =IF(AND(D40=E38,G40=E36,G41=E37),"Die Beträge sind richtig!","Mindestens ein Betrag ist falsch!") -> Mindestens ein Betrag ist falsch!
D38: brutto | E38: =SUM(E36:E37) -> 595 | F38: =IF(AND(F36="Die Konten sind richtig!",F37="Die Beträge sind richtig!"),"Alles richtig!","Es sind noch Fehler vorhanden!") -> Es sind noch Fehler vorhanden!
B39: Soll | C39: Konto | D39: € | E39: Haben | F39: Konto | G39: €
A40: Buchungssatz | C40: =IF(B40="","",VLOOKUP(B40,Kontenplan!$A$4:$B$31,2)) ->  | F40: =IF(E40="","",VLOOKUP(E40,Kontenplan!$A$4:$B$31,2)) -> 
C41: =IF(B41="","",VLOOKUP(B41,Kontenplan!$A$4:$B$31,2)) ->  | F41: =IF(E41="","",VLOOKUP(E41,Kontenplan!$A$4:$B$31,2)) -> 
A43: 6. | B43: Wir gewähren der Boutique Simone Sommer einen Bonus, | D43: netto | E43: 300 | F43: =IF(AND(B47="5001",B48="4800",E47="2400"),"Die Konten sind richtig!","Mindestens ein Konto ist falsch!") -> Mindestens ein Konto ist falsch!
A44: Geschäftsvorfall | D44: USt. | E44: =E43*G4 -> 57 | F44: =IF(AND(D47=E43,D48=E44,G47=E45),"Die Beträge sind richtig!","Mindestens ein Betrag ist falsch!") -> Mindestens ein Betrag ist falsch!
D45: brutto | E45: =SUM(E43:E44) -> 357 | F45: =IF(AND(F43="Die Konten sind richtig!",F44="Die Beträge sind richtig!"),"Alles richtig!","Es sind noch Fehler vorhanden!") -> Es sind noch Fehler vorhanden!
B46: Soll | C46: Konto | D46: € | E46: Haben | F46: Konto | G46: €
A47: Buchungssatz | C47: =IF(B47="","",VLOOKUP(B47,Kontenplan!$A$4:$B$31,2)) ->  | F47: =IF(E47="","",VLOOKUP(E47,Kontenplan!$A$4:$B$31,2)) -> 
C48: =IF(B48="","",VLOOKUP(B48,Kontenplan!$A$4:$B$31,2)) ->  | F48: =IF(E48="","",VLOOKUP(E48,Kontenplan!$A$4:$B$31,2)) -> 
A50: 7. | B50: Kauf eines Pkw, Listenpreis 32.000,00 Euro. Wir erhalten einen Treuerabatt von 20%. Zieleinkaufspreis: 25.600,00 Euro | D50: netto | E50: 25600 | F50: =IF(AND(B54="0840",B55="2600",E54="4400"),"Die Konten sind richtig!","Mindestens ein Konto ist falsch!") -> Mindestens ein Konto ist falsch!
A51: Geschäftsvorfall | D51: USt. | E51: =E50*G4 -> 4864 | F51: =IF(AND(D54=E50,D55=E51,G54=E52),"Die Beträge sind richtig!","Mindestens ein Betrag ist falsch!") -> Mindestens ein Betrag ist falsch!
D52: brutto | E52: =SUM(E50:E51) -> 30464 | F52: =IF(AND(F50="Die Konten sind richtig!",F51="Die Beträge sind richtig!"),"Alles richtig!","Es sind noch Fehler vorhanden!") -> Es sind noch Fehler vorhanden!
B53: Soll | C53: Konto | D53: € | E53: Haben | F53: Konto | G53: €
A54: Buchungssatz | C54: =IF(B54="","",VLOOKUP(B54,Kontenplan!$A$4:$B$31,2)) ->  | F54: =IF(E54="","",VLOOKUP(E54,Kontenplan!$A$4:$B$31,2)) -> 
C55: =IF(B55="","",VLOOKUP(B55,Kontenplan!$A$4:$B$31,2)) ->  | F55: =IF(E55="","",VLOOKUP(E55,Kontenplan!$A$4:$B$31,2)) -> 
A57: 8. | B57: Verkauf von Trainingsanzügen gegen Rechnung, | D57: netto | E57: 42600 | F57: =IF(AND(B61="2400",E61="5000",E62="4800"),"Die Konten sind richtig!","Mindestens ein Konto ist falsch!") -> Mindestens ein Konto ist falsch!
A58: Geschäftsvorfall | D58: USt. | E58: =E57*G4 -> 8094 | F58: =IF(AND(D61=E59,G61=E57,G62=E58),"Die Beträge sind richtig!","Mindestens ein Betrag ist falsch!") -> Mindestens ein Betrag ist falsch!
D59: brutto | E59: =SUM(E57:E58) -> 50694 | F59: =IF(AND(F57="Die Konten sind richtig!",F58="Die Beträge sind richtig!"),"Alles richtig!","Es sind noch Fehler vorhanden!") -> Es sind noch Fehler vorhanden!
B60: Soll | C60: Konto | D60: € | E60: Haben | F60: Konto | G60: €
A61: Buchungssatz | C61: =IF(B61="","",VLOOKUP(B61,Kontenplan!$A$4:$B$31,2)) ->  | F61: =IF(E61="","",VLOOKUP(E61,Kontenplan!$A$4:$B$31,2)) -> 
C62: =IF(B62="","",VLOOKUP(B62,Kontenplan!$A$4:$B$31,2)) ->  | F62: =IF(E62="","",VLOOKUP(E62,Kontenplan!$A$4:$B$31,2)) -> 
A64: 9. | B64: Wir zahlen die Kosten für den Transport der Trainingsanzüge aus Geschäftsvorfall 8. bar, | D64: netto | E64: 250 | F64: =IF(AND(B68="6140",B69="2600",E68="2880"),"Die Konten sind richtig!","Mindestens ein Konto ist falsch!") -> Mindestens ein Konto ist falsch!
A65: Geschäftsvorfall | D65: USt. | E65: =E64*G4 -> 47.5 | F65: =IF(AND(D68=E64,D69=E65,G68=E66),"Die Beträge sind richtig!","Mindestens ein Betrag ist falsch!") -> Mindestens ein Betrag ist falsch!
D66: brutto | E66: =SUM(E64:E65) -> 297.5 | F66: =IF(AND(F64="Die Konten sind richtig!",F65="Die Beträge sind richtig!"),"Alles richtig!","Es sind noch Fehler vorhanden!") -> Es sind noch Fehler vorhanden!
B67: Soll | C67: Konto | D67: € | E67: Haben | F67: Konto | G67: €
A68: Buchungssatz | C68: =IF(B68="","",VLOOKUP(B68,Kontenplan!$A$4:$B$31,2)) ->  | F68: =IF(E68="","",VLOOKUP(E68,Kontenplan!$A$4:$B$31,2)) -> 
C69: =IF(B69="","",VLOOKUP(B69,Kontenplan!$A$4:$B$31,2)) ->  | F69: =IF(E69="","",VLOOKUP(E69,Kontenplan!$A$4:$B$31,2)) -> 
A71: 10. | B71: Banküberweisung der Eingangsrechnung für Bauwollstoffe aus Geschäftsvorfall 1, unter Berücksichtigung der Rücksendung aus Geschäftsvorfall 5. und Abzug von 2% Skonto. | D71: Lastschrift | E71: =E74-(E74*2%) -> 20991.6 | F71: =IF(AND(B76="4400",E76="2800",E77="2002",E78="2600"),"Die Konten sind richtig!","Mindestens ein Konto ist falsch!") -> Mindestens ein Konto ist falsch!
D72: Skonto | E72: =ROUND(((E74*2%)*100)/(100+(100*G4)),2) -> 360
A73: Geschäftsvorfall | D73: USt. | E73: =ROUND(E72*G4,2) -> 68.4 | F73: =IF(AND(D76=E74,E74,G76=E71,G77=E72,G78=E73),"Die Beträge sind richtig!","Mindestens ein Betrag ist falsch!") -> Mindestens ein Betrag ist falsch!
D74: Bruttobetrag | E74: 21420 | F74: =IF(AND(F71="Die Konten sind richtig!",F73="Die Beträge sind richtig!"),"Alles richtig!","Es sind noch Fehler vorhanden!") -> Es sind noch Fehler vorhanden!
B75: Soll | C75: Konto | D75: € | E75: Haben | F75: Konto | G75: €
A76: Buchungssatz | C76: =IF(B76="","",VLOOKUP(B76,Kontenplan!$A$4:$B$31,2)) ->  | F76: =IF(E76="","",VLOOKUP(E76,Kontenplan!$A$4:$B$31,2)) -> 
C77: =IF(B77="","",VLOOKUP(B77,Kontenplan!$A$4:$B$31,2)) ->  | F77: =IF(E77="","",VLOOKUP(E77,Kontenplan!$A$4:$B$31,2)) -> 
C78: =IF(B78="","",VLOOKUP(B78,Kontenplan!$A$4:$B$31,2)) ->  | F78: =IF(E78="","",VLOOKUP(E78,Kontenplan!$A$4:$B$31,2)) -> 
A80: 11. | B80: Wir erhalten eine Gutschrift für einen Preisnachlass von einem Rohstofflieferanten, | D80: netto | E80: 700 | F80: =IF(AND(B84="4400",E84="2002",E85="2600"),"Die Konten sind richtig!","Mindestens ein Konto ist falsch!") -> Mindestens ein Konto ist falsch!
A81: Geschäftsvorfall | D81: USt. | E81: =E80*G4 -> 133 | F81: =IF(AND(D84=E82,G84=E80,G85=E81),"Die Beträge sind richtig!","Mindestens ein Betrag ist falsch!") -> Mindestens ein Betrag ist falsch!
D82: brutto | E82: =SUM(E80:E81) -> 833 | F82: =IF(AND(F80="Die Konten sind richtig!",F81="Die Beträge sind richtig!"),"Alles richtig!","Es sind noch Fehler vorhanden!") -> Es sind noch Fehler vorhanden!
B83: Soll | C83: Konto | D83: € | E83: Haben | F83: Konto | G83: €
A84: Buchungssatz | C84: =IF(B84="","",VLOOKUP(B84,Kontenplan!$A$4:$B$31,2)) ->  | F84: =IF(E84="","",VLOOKUP(E84,Kontenplan!$A$4:$B$31,2)) -> 
C85: =IF(B85="","",VLOOKUP(B85,Kontenplan!$A$4:$B$31,2)) ->  | F85: =IF(E85="","",VLOOKUP(E85,Kontenplan!$A$4:$B$31,2)) -> 
A87: 12. | B87: Barkauf von Fachzeitschriften, (Verminderter Umsatzsteuersatz) | D87: netto | E87: 50 | F87: =IF(AND(B91="6810",B92="2600",E91="2880"),"Die Konten sind richtig!","Mindestens ein Konto ist falsch!") -> Mindestens ein Konto ist falsch!
A88: Geschäftsvorfall | D88: USt. | E88: =E87*7% -> 3.5 | F88: =IF(AND(D91=E87,D92=E88,G91=E89),"Die Beträge sind richtig!","Mindestens ein Betrag ist falsch!") -> Mindestens ein Betrag ist falsch!
D89: brutto | E89: =SUM(E87:E88) -> 53.5 | F89: =IF(AND(F87="Die Konten sind richtig!",F88="Die Beträge sind richtig!"),"Alles richtig!","Es sind noch Fehler vorhanden!") -> Es sind noch Fehler vorhanden!
B90: Soll | C90: Konto | D90: € | E90: Haben | F90: Konto | G90: €
A91: Buchungssatz | C91: =IF(B91="","",VLOOKUP(B91,Kontenplan!$A$4:$B$31,2)) ->  | F91: =IF(E91="","",VLOOKUP(E91,Kontenplan!$A$4:$B$31,2)) -> 
C92: =IF(B92="","",VLOOKUP(B92,Kontenplan!$A$4:$B$31,2)) ->  | F92: =IF(E92="","",VLOOKUP(E92,Kontenplan!$A$4:$B$31,2)) -> 
A94: Abschlussangaben
A95: A1 | B95: Endbestände lt. Inventur | F95: =IF(AND(B99="8010",E99="2100",B100="8010",E100="2200"),"Die Konten sind richtig!","Mindestens ein Konto ist falsch!") -> Mindestens ein Konto ist falsch!
A96: Abschlussangabe | C96: - Unfertige Erzeugnisse | E96: 19400 | F96: =IF(AND(D99=E96,D100=E97,G99=E96,G100=E97),"Die Beträge sind richtig!","Mindestens ein Betrag ist falsch!") -> Mindestens ein Betrag ist falsch!
C97: - Fertige Erzeugnisse | E97: 33400 | F97: =IF(AND(F95="Die Konten sind richtig!",F96="Die Beträge sind richtig!"),"Alles richtig!","Es sind noch Fehler vorhanden!") -> Es sind noch Fehler vorhanden!
B98: Soll | C98: Konto | D98: € | E98: Haben | F98: Konto | G98: €
A99: Buchungssatz | C99: =IF(B99="","",VLOOKUP(B99,Kontenplan!$A$4:$B$31,2)) ->  | F99: =IF(E99="","",VLOOKUP(E99,Kontenplan!$A$4:$B$31,2)) -> 
C100: =IF(B100="","",VLOOKUP(B100,Kontenplan!$A$4:$B$31,2)) ->  | F100: =IF(E100="","",VLOOKUP(E100,Kontenplan!$A$4:$B$31,2)) -> 
A102: =IF(AND(F8="Alles richtig!",F15="Alles richtig!",F23="Alles richtig!",F31="Alles richtig!",F38="Alles richtig!",F45="Alles richtig!",F52="Alles richtig!",F59="Alles richtig!",F66="Alles richtig!",F74="Alles richtig!",F82="Alles richtig!",F89="Alles richtig!",F97="Alles richtig!",F97="Alles richtig!"),"Super gebucht, die Aufgabe ist gelöst!","Bilden Sie alle Buchungssätze!") -> Bilden Sie alle Buchungssätze!

Sheet Hauptbuch
A1: Hauptbuch
A3: Soll | B3: 0500 Grundstücke und Bauten | J3: Haben
A4: AB | B4: 8000 | E4: =Bilanzbuch!C4 -> 220000 | F4: SB | G4: 8010 | J4: =E4 -> 220000
A6: Soll | B6: 0700 Technische Anlagen und Maschinen | J6: Haben
A7: AB | B7: 8000 | E7: =Bilanzbuch!C5 -> 443000 | F7: SB | G7: 8010 | J7: =E7 -> 443000
A9: Soll | B9: 0800 Betriebs- und Geschäftsausstattung | J9: Haben
A10: AB | B10: 8000 | E10: =Bilanzbuch!C6 -> 76800 | F10: SB | G10: 8010 | J10: =E10 -> 76800
A12: Soll | B12: 0840 Fuhrpark | J12: Haben
A13: AB | B13: 8000 | E13: =Bilanzbuch!C7 -> 88000 | F13: SB | G13: 8010 | J13: =J15 -> 88000
A14: 7. | B14: 4400 | E14: =Grundbuch!D54 -> 0
E15: =E13+E14 -> 88000 | J15: =E15 -> 88000
A17: Soll | B17: 2000 Rohstoffe | J17: Haben
A18: AB | B18: 8000 | E18: =Bilanzbuch!C8 -> 154000 | F18: A | G18: 2002 | J18: =E27 -> 0
A19: 1. | B19: 4400 | E19: =Grundbuch!D10 -> 0 | F19: 5. | G19: 4400 | J19: =Grundbuch!G40 -> 0
A20: A | B20: 2001 | E20: =J24 -> 0 | F20: SB | G20: 8010 | J20: =J21-J18-J19 -> 154000
E21: =SUM(E18:E20) -> 154000 | J21: =E21 -> 154000
A23: Soll | B23: 2001 Bezugskosten (Rohstoffe) | J23: Haben
A24: 2. | B24: 2880 | E24: =Grundbuch!D17 -> 0 | F24: A | G24: 2000 | J24: =E24 -> 0
A26: Soll | B26: 2002 Nachlässe (Rohstoffe) | J26: Haben
A27: A | B27: 2000 | E27: =E29 -> 0 | F27: 10. | G27: 4400 | J27: =Grundbuch!G77 -> 0
F28: 11. | G28: 4400 | J28: =Grundbuch!G84 -> 0
E29: =J29 -> 0 | J29: =J27+J28 -> 0
A31: Soll | B31: 2020 Hilfsstoffe | J31: Haben
A32: AB | B32: 8000 | E32: =Bilanzbuch!C9 -> 12800 | F32: SB | G32: 8010 | J32: =E32 -> 12800
A35: Soll | B35: 2030 Betriebsstoffe | J35: Haben
A36: AB | B36: 8000 | E36: =Bilanzbuch!C10 -> 7800 | F36: SB | G36: 8010 | J36: =E36 -> 7800
A38: Soll | B38: 2100 Unfertige Erzeugnisse | J38: Haben
A39: AB | B39: 8000 | E39: =Bilanzbuch!C11 -> 17800 | F39: A | G39: 8010 | J39: =Grundbuch!G99 -> 0
A40: =IF(E39<J39,"A","") ->  | B40: =IF(E39<J39,5200,"") ->  | E40: =IF(E39<J39,E41-E39,"") ->  | F40: =IF(E39>J39,"A","") -> A | G40: =IF(J39<E39,5200,"") -> 5200 | J40: =IF($E$39>$J$39,J41-J39,"") -> 17800
E41: =IF($E$39>$J$39,$E$39,$J$39) -> 17800 | J41: =IF($E$39>$J$39,$E$39,$J$39) -> 17800
A43: Soll | B43: 2200 Fertige Erzeugnisse | J43: Haben
A44: AB | B44: 8000 | E44: =Bilanzbuch!C12 -> 32700 | F44: A | G44: 8010 | J44: =Grundbuch!G100 -> 0
A45: =IF(E44<J44,"A","") ->  | B45: =IF(E44<J44,5200,"") ->  | E45: =IF(E44<E46,E46-E44,"") ->  | F45: =IF(J44<E44,"A","") -> A | G45: =IF(J44<E44,5200,"") -> 5200 | J45: =IF(J44<E44,J46-J44,"") -> 32700
E46: =IF(E44>J44,E44,J44) -> 32700 | J46: =IF(E44>J44,E44,J44) -> 32700
A48: Soll | B48: 2400 Forderungen aus Lieferungen und Leistungen | J48: Haben
A49: AB | B49: 8000 | E49: =Bilanzbuch!C13 -> 54800 | F49: 3. | G49: 2800 | H49: 5001 | I49: 4800 | J49: =Grundbuch!G25 -> 0
A50: 8. | B50: 5000 | C50: 4800 | E50: =Grundbuch!D61 -> 0 | F50: 6. | G50: 5001 | H50: 4800 | J50: =Grundbuch!G47 -> 0
F51: SB | G51: 8010 | J51: =J52-J49-J50 -> 54800
E52: =SUM(E49:E51) -> 54800 | J52: =E52 -> 54800
A54: Soll | B54: 2600 Vorsteuer | J54: Haben
A55: 1. | B55: 4400 | E55: =Grundbuch!D11 -> 0 | F55: 5. | G55: 4400 | J55: =Grundbuch!G41 -> 0
A56: 2. | B56: 2880 | E56: =Grundbuch!D18 -> 0 | F56: 10. | G56: 4400 | J56: =Grundbuch!G78 -> 0
A57: 4. | B57: 2880 | E57: =Grundbuch!D34 -> 0 | F57: 11. | G57: 4400 | J57: =Grundbuch!G85 -> 0
A58: 7. | B58: 4400 | E58: =Grundbuch!D55 -> 0 | F58: A | G58: 4800 | J58: =J61-SUM(J55:J57) -> 0
A59: 9. | B59: 2880 | E59: =Grundbuch!D69 -> 0
A60: 12. | B60: 2880 | E60: =Grundbuch!D92 -> 0
E61: =SUM(E55:E60) -> 0 | J61: =E61 -> 0
A63: Soll | B63: 2800 Kreditinstitute/Bank | J63: Haben
A64: AB | B64: 8000 | E64: =Bilanzbuch!C14 -> 87900 | F64: 10. | G64: 4400 | J64: =Grundbuch!G76 -> 0
A65: 3. | B65: 2400 | E65: =Grundbuch!D25 -> 0 | F65: SB | G65: 8010 | J65: =J66-J64 -> 87900
E66: =SUM(E64:E65) -> 87900 | J66: =E66 -> 87900
A68: Soll | B68: 2880 Kasse | J68: Haben
A69: AB | B69: 8000 | E69: =Bilanzbuch!C15 -> 11200 | F69: 2. | G69: 2001 | H69: 2600 | J69: =Grundbuch!G17 -> 0
F70: 4. | G70: 6160 | H70: 2600 | J70: =Grundbuch!G33 -> 0
F71: 9. | G71: 6140 | H71: 2600 | J71: =Grundbuch!G68 -> 0
F72: 12. | G72: 6810 | H72: 2600 | J72: =Grundbuch!G91 -> 0
F73: SB | G73: 8010 | J73: =J74-SUM(J69:J72) -> 11200
E74: =SUM(E69:E73) -> 11200 | J74: =E74 -> 11200
A76: Soll | B76: 3000 Eigenkapital | J76: Haben
A77: A | B77: 8020 | E77: =IF(GuV!F8>0,GuV!F8,0) -> 50500 | F77: AB | G77: 8000 | J77: =Bilanzbuch!F4 -> 714080
A78: SB | B78: 8010 | E78: =E79-E77 -> 663580 | F78: A | G78: 8020 | J78: =IF(GuV!C8>0,GuV!C8,0) -> 0
E79: =J79 -> 714080 | J79: =SUM(J77:J78) -> 714080
A81: Soll | B81: 4200 Verbindlichkeiten gegenüber Kreditinstituten (Darlehen) | J81: Haben
A82: SB | B82: 8010 | E82: =J82 -> 450000 | F82: AB | G82: 8000 | J82: =Bilanzbuch!F5 -> 450000
A84: Soll | B84: 4400 Verbindlichkeiten aus Lieferungen und Leistungen | J84: Haben
A85: 5. | B85: 2000 | C85: 2600 | E85: =Grundbuch!D40 -> 0 | F85: AB | G85: 8000 | J85: =Bilanzbuch!F6 -> 34600
A86: 10. | B86: 2800 | C86: 2002 | D86: 2600 | E86: =Grundbuch!D76 -> 0 | F86: 1. | G86: 2000 | H86: 2600 | J86: =Grundbuch!G10 -> 0
A87: 11. | B87: 2002 | C87: 2600 | E87: =Grundbuch!D84 -> 0 | F87: 7. | G87: 0840 | H87: 2600 | J87: =Grundbuch!G54 -> 0
A88: SB | B88: 8010 | E88: =E89-SUM(E85:E87) -> 34600
E89: =J89 -> 34600 | J89: =SUM(J85:J88) -> 34600
A91: Soll | B91: 4800 Umsatzsteuer | J91: Haben
A92: 3. | B92: 2400 | E92: =Grundbuch!D27 -> 0 | F92: AB | G92: 8000 | J92: =Bilanzbuch!F7 -> 8120
A93: 6. | B93: 2400 | E93: =Grundbuch!D48 -> 0 | F93: 8. | G93: 2400 | J93: =Grundbuch!G62 -> 0
A94: A. | B94: 2600 | E94: =J58 -> 0
A95: SB | B95: 8010 | E95: =E96-SUM(E92:E94) -> 8120
E96: =J96 -> 8120 | J96: =SUM(J92:J95) -> 8120
A98: Soll | B98: 5000 Umsatzerlöse | J98: Haben
A99: A | B99: 5001 | E99: =J104 -> 0 | F99: 8. | G99: 2400 | J99: =Grundbuch!G61 -> 0
A100: A | B100: 8020 | E100: =E101-E99 -> 0
E101: =J101 -> 0 | J101: =SUM(J99:J100) -> 0
A103: Soll | B103: 5001 Erlösberichtigungen | J103: Haben
A104: 3. | B104: 2400 | E104: =Grundbuch!D26 -> 0 | F104: A | G104: 5000 | J104: =J106 -> 0
A105: 6. | B105: 2400 | E105: =Grundbuch!D47 -> 0
E106: =E104+E105 -> 0 | J106: =E106 -> 0
A108: Soll | B108: 5200 Bestandsveränderunen | J108: Haben
A109: =IF(J39<E39,"A","") -> A | B109: =IF(J39<E39,2100,"") -> 2100 | E109: =IF(J39<E39,J40,0) -> 17800 | F109: =IF(E39<J39,"A","") ->  | G109: =IF(E39<J39,2100,"") ->  | J109: =IF(E39<J39,E40,0) -> 0
A110: =IF(J44<E44,"A","") -> A | B110: =IF(J44<E44,2200,"") -> 2200 | E110: =IF(J44<E44,J45,0) -> 32700 | F110: =IF(E44<J44,"A","") ->  | G110: =IF(E44<J44,2200,"") ->  | J110: =IF(E44<J44,E45,0) -> 0
A111: =IF(($J$109+$J$110)>($E$109+$E$110),"A","") ->  | B111: =IF(($J$109+$J$110)>($E$109+$E$110),"8020","") ->  | E111: =IF(($J$109+$J$110)>($E$109+$E$110),($J$109+$J$110)-(E109+E110),0) -> 0 | F111: =IF(($J$109+$J$110)<($E$109+$E$110),"A","") -> A | G111: =IF(($J$109+$J$110)<($E$109+$E$110),"8020","") -> 8020 | J111: =IF(($J$109+$J$110)<($E$109+$E$110),($E$109+$E$110)-(J109+J110),0) -> 50500
E112: =IF(($J$109+$J$110)>($E$109+$E$110),($J$109+$J$110),($E$109+$E$110)) -> 50500 | J112: =IF(($J$109+$J$110)>($E$109+$E$110),($J$109+$J$110),($E$109+$E$110)) -> 50500
A114: Soll | B114: 6140 Frachten und Femdlager | J114: Haben
A115: 9. | B115: 2880 | E115: =Grundbuch!D68 -> 0 | F115: A | G115: 8020 | J115: =E115 -> 0
A117: Soll | B117: 6160 Fremdinstandhaltung | J117: Haben
A118: 4. | B118: 2880 | E118: =Grundbuch!D33 -> 0 | F118: A | G118: 8020 | J118: =E118 -> 0
A120: Soll | B120: 6810 Zeitungen und Fachliteratur | J120: Haben
A121: 12 | B121: 2880 | E121: =Grundbuch!D91 -> 0 | F121: A | G121: 8020 | J121: =E121 -> 0

Sheet GuV
A1: Gewinn- und Verlustrechnung
A3: Soll | B3: 8020 Gewinn und Verlust | F3: Haben
A4: 5200 | B4: =VLOOKUP(A4,Kontenplan!$A$4:$B$31,2) -> Bestandsveränderungen | C4: =IF(Hauptbuch!J111>0,Hauptbuch!J111,0) -> 50500 | D4: 5000 | E4: =VLOOKUP(D4,Kontenplan!$A$4:$B$31,2) -> Umsatzerlöse | F4: =Hauptbuch!E100 -> 0
A5: 6140 | B5: Frachten und Fremdlager | C5: =Hauptbuch!J115 -> 0 | D5: 5200 | E5: =VLOOKUP(D5,Kontenplan!$A$4:$B$31,2) -> Bestandsveränderungen | F5: =IF(Hauptbuch!E111>0,Hauptbuch!E111,0) -> 0
A6: 6160 | B6: Fremdinstandhaltung | C6: =Hauptbuch!J118 -> 0
A7: 6810 | B7: Zeitungen und Fachliteratur | C7: =Hauptbuch!J121 -> 0
A8: =IF(SUM($F$4:$F$7)>SUM($C$4:$C$7),"3000","") ->  | B8: =IF(SUM($F$4:$F$7)>SUM($C$4:$C$7),"Eigenkapital","") ->  | C8: =IF(SUM($F$4:$F$7)>SUM($C$4:$C$7),SUM($F$4:$F$7)-SUM($C$4:$C$7),0) -> 0 | D8: =IF(SUM($F$4:$F$7)>SUM($C$4:$C$7),"","3000") -> 3000 | E8: =IF(SUM($F$4:$F$7)>SUM($C$4:$C$7),"","Eigenkapital") -> Eigenkapital | F8: =IF(SUM($C$4:$C$7)>SUM($F$4:$F$5),SUM($C$4:$C$7)-SUM($F$4:$F$5),0) -> 50500
C9: =IF(SUM($F$4:$F$7)>SUM($C$4:$C$7),SUM($F$4:$F$7),SUM($C$4:$C$7)) -> 50500 | F9: =SUM(F4:F8) -> 50500

Sheet Bilanzbuch
A1: Bilanzbuch
A3: Aktiva | B3: 8000 Eröffnungsbilanz | F3: Passiva
A4: 0500 | B4: =VLOOKUP(A4,Kontenplan!$A$4:$B$31,2) -> Grundstücke und Bauten | C4: 220000 | D4: 3000 | E4: =VLOOKUP(D4,Kontenplan!$A$4:$B$31,2) -> Eigenkapital | F4: =F16-SUM(F5:F15) -> 714080
A5: 0700 | B5: =VLOOKUP(A5,Kontenplan!$A$4:$B$31,2) -> Technische Anlagen und Maschinen | C5: 443000 | D5: 4200 | E5: Verbindlichkeiten g. Kreditinstitute | F5: 450000
A6: 0800 | B6: =VLOOKUP(A6,Kontenplan!$A$4:$B$31,2) -> Beriebs- und Geschäftsausstattung | C6: 76800 | D6: 4400 | E6: =VLOOKUP(D6,Kontenplan!$A$4:$B$31,2) -> Verbindlichkeiten a.L.u.L. | F6: 34600
A7: 0840 | B7: Fuhrpark | C7: 88000 | D7: 4800 | E7: =VLOOKUP(D7,Kontenplan!$A$4:$B$31,2) -> Umsatzsteuer | F7: 8120
A8: 2000 | B8: =VLOOKUP(A8,Kontenplan!$A$4:$B$31,2) -> Rohstoffe | C8: 154000
A9: 2020 | B9: =VLOOKUP(A9,Kontenplan!$A$4:$B$31,2) -> Hilfsstoffe | C9: 12800
A10: 2030 | B10: =VLOOKUP(A10,Kontenplan!$A$4:$B$31,2) -> Betriebsstoffe | C10: 7800
A11: 2100 | B11: =VLOOKUP(A11,Kontenplan!$A$4:$B$31,2) -> Unfertige Erzeugnisse | C11: 17800
A12: 2200 | B12: =VLOOKUP(A12,Kontenplan!$A$4:$B$31,2) -> Fertige Erzeugnisse | C12: 32700
A13: 2400 | B13: =VLOOKUP(A13,Kontenplan!$A$4:$B$31,2) -> Forderungen a.L.u.L. | C13: 54800
A14: 2800 | B14: =VLOOKUP(A14,Kontenplan!$A$4:$B$31,2) -> Kreditinstitute/Bank | C14: 87900
A15: 2880 | B15: =VLOOKUP(A15,Kontenplan!$A$4:$B$31,2) -> Kasse | C15: 11200
C16: =SUM(C4:C15) -> 1206800 | F16: =C16 -> 1206800
A18: Aktiva | B18: 8010 Schlussbilanz | F18: Passiva
A19: 0500 | B19: =VLOOKUP(A19,Kontenplan!$A$4:$B$31,2) -> Grundstücke und Bauten | C19: =Hauptbuch!J4 -> 220000 | D19: 3000 | E19: =VLOOKUP(D19,Kontenplan!$A$4:$B$31,2) -> Eigenkapital | F19: =Hauptbuch!E78 -> 663580
A20: 0700 | B20: =VLOOKUP(A20,Kontenplan!$A$4:$B$31,2) -> Technische Anlagen und Maschinen | C20: =Hauptbuch!J7 -> 443000 | D20: 4200 | E20: Verbindlichkeiten g. Kreditinstitute | F20: =Hauptbuch!E82 -> 450000
A21: 0800 | B21: =VLOOKUP(A21,Kontenplan!$A$4:$B$31,2) -> Beriebs- und Geschäftsausstattung | C21: =Hauptbuch!J10 -> 76800 | D21: 4400 | E21: =VLOOKUP(D21,Kontenplan!$A$4:$B$31,2) -> Verbindlichkeiten a.L.u.L. | F21: =Hauptbuch!E88 -> 34600
A22: 0840 | B22: Fuhrpark | C22: =Hauptbuch!J13 -> 88000 | D22: 4800 | E22: =VLOOKUP(D22,Kontenplan!$A$4:$B$31,2) -> Umsatzsteuer | F22: =Hauptbuch!E95 -> 8120
A23: 2000 | B23: =VLOOKUP(A23,Kontenplan!$A$4:$B$31,2) -> Rohstoffe | C23: =Hauptbuch!J20 -> 154000
A24: 2020 | B24: =VLOOKUP(A24,Kontenplan!$A$4:$B$31,2) -> Hilfsstoffe | C24: =Hauptbuch!J32 -> 12800
A25: 2030 | B25: =VLOOKUP(A25,Kontenplan!$A$4:$B$31,2) -> Betriebsstoffe | C25: =Hauptbuch!J36 -> 7800
A26: 2100 | B26: =VLOOKUP(A26,Kontenplan!$A$4:$B$31,2) -> Unfertige Erzeugnisse | C26: =Grundbuch!D99 -> 0
A27: 2200 | B27: =VLOOKUP(A27,Kontenplan!$A$4:$B$31,2) -> Fertige Erzeugnisse | C27: =Grundbuch!D100 -> 0
A28: 2400 | B28: =VLOOKUP(A28,Kontenplan!$A$4:$B$31,2) -> Forderungen a.L.u.L. | C28: =Hauptbuch!J51 -> 54800
A29: 2800 | B29: =VLOOKUP(A29,Kontenplan!$A$4:$B$31,2) -> Kreditinstitute/Bank | C29: =Hauptbuch!J65 -> 87900
A30: 2880 | B30: =VLOOKUP(A30,Kontenplan!$A$4:$B$31,2) -> Kasse | C30: =Hauptbuch!J73 -> 11200
C31: =SUM(C19:C30) -> 1156300 | F31: =SUM(F19:F30) -> 1156300

Sheet Kontenplan
B1: Kontenplan
A3: Nr. | B3: Konto
A4: 0500 | B4: Grundstücke und Bauten
A5: 0700 | B5: Technische Anlagen und Maschinen
A6: 0800 | B6: Beriebs- und Geschäftsausstattung
A7: 0840 | B7: Fuhrpark
A8: 2000 | B8: Rohstoffe
A9: 2001 | B9: Bezugskosten (Rohstoffe)
A10: 2002 | B10: Nachlässe (Rohstoffe)
A11: 2020 | B11: Hilfsstoffe
A12: 2030 | B12: Betriebsstoffe
A13: 2100 | B13: Unfertige Erzeugnisse
A14: 2200 | B14: Fertige Erzeugnisse
A15: 2400 | B15: Forderungen a.L.u.L.
A16: 2600 | B16: Vorsteuer
A17: 2800 | B17: Kreditinstitute/Bank
A18: 2880 | B18: Kasse
A19: 3000 | B19: Eigenkapital
A20: 4200 | B20: Verbindlichkeiten g. Kreditinstitute
A21: 4400 | B21: Verbindlichkeiten a.L.u.L.
A22: 4800 | B22: Umsatzsteuer
A23: 5000 | B23: Umsatzerlöse
A24: 5001 | B24: Erlösberichtigungen
A25: 5200 | B25: Bestandsveränderungen
A26: 6140 | B26: Frachten und Fremdlager
A27: 6160 | B27: Fremdinstandhaltung
A28: 6810 | B28: Zeitungen und Fachliteratur
A29: 8000 | B29: Eröffnungsbilanz
A30: 8010 | B30: Schlussbilanz
A31: 8020 | B31: Gewinn und Verlust
